[Event "FIDE World School-ch O-17 2025"]
[Site "Vrnjacka Banja"]
[Date "2025.03.20"]
[Round "1.1"]
[White "Manuwaruna, Sethun Neththaru"]
[Black "Bogdanov, Artyom"]
[Result "0-1"]
[Annotator "TA"]
[ECO "A05"]
[WhiteElo "1916"]
[BlackElo "2373"]
[PlyCount "74"]
[EventDate "2025.03.19"]
[EventType "swiss"]
[EventCountry "SRB"]
[SourceTitle "playchess.com"]
[Source "ChessBase"]
[SourceQuality "1"]
[TimeControl "5400+30"]

{[%evp 11,74,25,28,9,7,-12,0,0,-3,-39,-25,-54,-42,-63,-56,-81,-27,-36,-22,-53,-77,-56,-61,-83,0,-38,-14,-29,-27,-21,-16,-6,16,-29,6,-156,-180,-181,-151,-240,-253,-246,-265,-269,-237,-262,-270,-568,-537,-520,-478,-445,-471,-379,-365,-473,-416,-479,-391,-734,-864,-883,-838,-940,-1285]} 1. Nf3 {[%emt 0:00:05]} Nf6 {[%emt 0:00:09]} 2. g3 {[%emt 0:00:03]} b5 {[%emt 0:00:27]} 3. Bg2 {[%emt 0:01:49]} Bb7 {[%emt 0:00:07]} 4. O-O {[%emt 0:01:45]} e6 {[%emt 0:00:09]} 5. d3 {[%emt 0:00:21]} c5 {[%emt 0:01:34]} 6. e4 {[%emt 0:02:20]} d6 {[%emt 0:00:14]} 7. h3 {[%emt 0:07:16] A05: Réti Opening: 1 Nf3 Nf6.} Be7 {[%emt 0:05:33]} 8. Be3 {[%emt 0:01:34]} Nc6 {[%emt 0:07:21]} 9. Nbd2 $146 {[%emt 0:05:48] The position is equal.} ({Predecessor:} 9. Nfd2 d5 10. exd5 Nxd5 11. Nc3 Nxe3 12. fxe3 a6 13. a4 Qb6 14. Qh5 O-O 15. Nf3 {1-0 Lohmann,H (2531)-Machycek,L (2524) W-12Cup Final corr 2005}) 9... O-O {[%emt 0:14:10]} 10. c3 {[%emt 0:13:27]} a5 {[%emt 0:09:38]} 11. Nh2 {[%emt 0:03:36]} a4 {[%emt 0:05:11]} 12. f4 {[%emt 0:03:29]} a3 {[%emt 0:04:37]} 13. b3 {[%emt 0:03:55]} d5 {[%emt 0:05:57] Black is more active.} (13... b4 $17 14. c4 Nd7) 14. e5 $11 {[%emt 0:10:04]} Nd7 {[%emt 0:01:24]} 15. Nhf3 {[%emt 0:04:25]} f6 {[%emt 0:05:19]} 16. exf6 {[%emt 0:05:20]} Bxf6 {[%emt 0:00:51]} (16... Nxf6 17. Qe2 $11) 17. Rc1 {[%emt 0:02:21]} Qa5 {[%emt 0:05:29]} (17... b4 $17 18. c4 Re8) 18. d4 {[%emt 0:03:45]} b4 {[%emt 0:03:31]} 19. Ne5 {[%emt 0:00:43]} (19. Nb1 {simplifies} Rad8 20. cxb4 Nxb4 21. Qd2) 19... bxc3 {[%emt 0:20:49][%cal Rf6e5] [#]} (19... Bxe5 20. dxe5 bxc3 21. Nc4 $17) 20. Nxd7 {[%emt 0:04:45] Nf3 is the strong threat.} cxd4 $1 {[%emt 0:00:46]} 21. b4 {[%emt 0:02:57]} (21. Nxf6+ $2 gxf6 (21... Rxf6 22. Bxd4 Nxd4 23. Ne4 $19) 22. Bf2 (22. Qg4+ $2 Kh8 $19) 22... cxd2 $19) 21... Qd8 {[%emt 0:06:24] Some like it hot} 22. Nxf8 {[%emt 0:03:43]} dxe3 {[%emt 0:00:48]} 23. Nb3 {[%emt 0:00:52] Black continues to play with concentration.} ({White should try} 23. Nxe6 $11 Qb6 24. Nc4 dxc4 25. Nc5 Nxb4 (25... Qxb4 $2 26. Qd5+ Kh8 27. Nxb7 $18) (25... Rd8 26. Qe2 $17) 26. Nd7) 23... Qxf8 $17 {[%emt 0:00:40]} (23... Kxf8 24. Nc5 Qe7 25. Nxb7 Nxb4 (25... Qxb7 $2 26. f5 $19) 26. Qe2 $19) 24. b5 {[%emt 0:07:53]} Na5 {[%emt 0:00:24]} 25. f5 {[%emt 0:02:52]} (25. Re1 $17) 25... Nxb3 {[%emt 0:00:47]} 26. Qxb3 {[%emt 0:00:08] White is weak on the dark squares} Qc5 {[%emt 0:00:16]} (26... e2 27. Rfe1 Qc5+ (27... exf5 28. Bxd5+ Bxd5 29. Qxd5+ Kh8 30. b6 $11) 28. Kh1 $19) 27. Kh1 {[%emt 0:01:26]} Re8 {[%emt 0:00:44]} 28. fxe6 {[%emt 0:01:56]} Rxe6 {[%emt 0:00:03]} 29. Rxf6 $2 {[%emt 0:00:23]} (29. Rb1) 29... gxf6 $19 {[%emt 0:00:42]} ({Stronger than} 29... Rxf6 30. Rxc3 Qf8 31. Rxe3 $11 (31. Qxa3 $2 {too greedy.} Rf1+ 32. Kh2 Qf2 $19) (31. Bxd5+ $2 Kh8 $19)) 30. Rxc3 {[%emt 0:00:18]} Qd4 {[%emt 0:00:37] ( -> ...e2)} 31. Rc1 {[%emt 0:02:57]} e2 {[%emt 0:00:24] Prevents Qd1} 32. Re1 {[%emt 0:01:10]} Qd2 {[%emt 0:00:20]} 33. Qb1 {[%emt 0:00:16]} Kg7 {[%emt 0:00:34]} 34. Kh2 {[%emt 0:01:03]} Re7 {[%emt 0:00:24] And now ...d4 would win.} 35. Kh1 $2 {[%emt 0:00:48]} (35. h4) 35... d4 {[%emt 0:00:34] Black is clearly winning.} 36. Bxb7 {[%emt 0:00:40]} Rxb7 {[%emt 0:00:05]} 37. b6 {[%emt 0:00:42] [#]} Rxb6 $3 {[%emt 0:00:46][%mdl 512] Weighted Error Value: White=0.57/Black=0.14 (very precise)   Mistake:       	White=4     	Black=2      Inaccurate:     	White=4     	---        OK:         	White=12    	Black=5      Best:        	White=1     	Black=6      Strong:       	---       	Black=1} 0-1

[Event "FIDE World School-ch O-17 2025"]
[Site "Vrnjacka Banja"]
[Date "2025.03.20"]
[Round "1.2"]
[White "Ljepic, Andrej"]
[Black "Tadic, Stefan M"]
[Result "1-0"]
[Annotator "TA"]
[ECO "B53"]
[WhiteElo "2337"]
[BlackElo "1906"]
[PlyCount "113"]
[EventDate "2025.03.19"]
[EventType "swiss"]
[EventCountry "SRB"]
[SourceTitle "playchess.com"]
[Source "ChessBase"]
[SourceQuality "1"]
[TimeControl "5400+30"]

{[%evp 9,113,12,17,15,32,25,26,11,28,39,50,29,48,48,37,24,64,39,93,86,168,216,208,170,170,163,220,151,176,173,175,176,178,175,163,161,191,168,177,181,138,123,101,136,134,139,197,234,317,308,319,325,304,318,310,327,367,353,457,347,455,451,395,384,402,359,511,490,503,500,518,454,481,481,475,472,447,455,492,487,492,483,489,485,500,490,502,502,498,479,497,497,501,489,643,631,681,677,659,609,705,677,719,645,1044,982]} 1. e4 {[%emt 0:00:04]} c5 {[%emt 0:00:11]} 2. Nf3 {[%emt 0:00:13]} d6 {[%emt 0:00:24]} 3. d4 {[%emt 0:00:08]} cxd4 {[%emt 0:00:04]} 4. Qxd4 {[%emt 0:00:06]} Nc6 {[%emt 0:00:58]} 5. Qe3 {[%emt 0:00:06]} Nf6 {[%emt 0:00:24]} 6. h3 {[%emt 0:00:45] B53: Sicilian: 2...d6: Lines with Qxd4.} g6 {[%emt 0:00:28]} 7. Be2 {[%emt 0:00:07]} Bg7 {[%emt 0:00:13]} 8. O-O {[%emt 0:00:07] White has an edge.} O-O {[%emt 0:00:04]} 9. Rd1 {[%emt 0:00:33]} Qc7 {[%emt 0:01:18][%cal Od6d5]} 10. c4 {[%emt 0:00:49]} Be6 {[%emt 0:01:18]} 11. Ng5 {[%emt 0:16:52]} Nd7 {[%emt 0:06:56]} 12. Nc3 {[%emt 0:05:05]} Nc5 $146 {[%emt 0:02:26]} ({Predecessor:} 12... Nb4 13. Nb5 Qc6 14. Qb3 a5 15. Nd4 Bxd4 16. Rxd4 Nc5 17. Qc3 Bc8 18. a3 f6 19. Nxh7 Rf7 20. Qg3 Nc2 21. Rxd6 Qxd6 {½-½ Benz,G (2542)-Fuzishawa,R (2422) W-ch43 sf02 email 2019}) 13. Rb1 {[%emt 0:06:17]} Nb4 {[%emt 0:09:53]} ({Black should try} 13... a5 $14) 14. Qg3 $16 {[%emt 0:02:14]} a5 {[%emt 0:07:51]} (14... h6 $16) 15. Qh4 $18 {[%emt 0:05:46][%csl Gg5][%cal Rh4h7] [#]} h6 {[%emt 0:00:33]} 16. Nxe6 {[%emt 0:01:33]} Nxe6 {[%emt 0:00:15]} 17. Bxh6 {[%emt 0:02:10]} a4 {[%emt 0:03:01]} (17... Bf6 $142 18. Qg4 Rfc8) 18. Nd5 {[%emt 0:04:27]} Nxd5 {[%emt 0:00:17]} 19. exd5 {[%emt 0:00:16]} Nc5 {[%emt 0:00:44]} 20. Bxg7 {[%emt 0:00:17]} Kxg7 {[%emt 0:00:05]} 21. Qd4+ $40 {[%emt 0:00:05][%mdl 128] White has strong attack.} f6 {[%emt 0:02:07]} 22. Bf1 {[%emt 0:02:06]} Kf7 {[%emt 0:05:58]} 23. Re1 {[%emt 0:00:26]} Rh8 {[%emt 0:03:28]} 24. Re3 {[%emt 0:02:11]} Rh5 {[%emt 0:02:35]} 25. f4 {[%emt 0:03:09] White is more active.} e5 {[%emt 0:02:35]} 26. dxe6+ {[%emt 0:03:52]} Nxe6 {[%emt 0:00:23]} 27. Qe4 {[%emt 0:00:14]} Nc5 {[%emt 0:00:13]} (27... Re8 $16 28. Bd3 f5) 28. Qf3 {[%emt 0:00:25]} Rhh8 {[%emt 0:01:17]} 29. Qd5+ {[%emt 0:00:34]} Kf8 {[%emt 0:01:10]} 30. Rbe1 {[%emt 0:00:30]} Rh7 {[%emt 0:00:53]} 31. b4 {[%emt 0:02:01]} axb3 {[%emt 0:00:17]} 32. axb3 {[%emt 0:00:07][%cal Ba2b3,Bb3b4][%mdl 32]} Qc6 {[%emt 0:01:15]} 33. Qd4 {[%emt 0:00:42]} Rf7 {[%emt 0:01:30]} 34. b4 {[%emt 0:00:49][%cal Of4f5] [#] aiming for f5!.} Nd7 {[%emt 0:00:26]} 35. Re6 {[%emt 0:00:12]} Qb6 {[%emt 0:04:41]} 36. Qxb6 {[%emt 0:00:39]} Nxb6 {[%emt 0:00:06]} 37. Rxd6 {[%emt 0:00:05]} Nd7 {[%emt 0:00:33]} (37... Na4 {was necessary.} 38. c5 Kg7) 38. c5 {[%emt 0:00:23] White is clearly winning.} Rc8 {[%emt 0:00:46]} 39. Red1 {[%emt 0:00:26]} Rc7 {[%emt 0:00:37]} 40. Bb5 {[%emt 0:00:36]} Nxc5 {[%emt 0:00:11]} 41. bxc5 {[%emt 0:00:15]} Rxc5 {[%emt 0:00:04]} 42. Bd3 {[%emt 0:00:06]} Kg7 {[%emt 0:00:40]} 43. Rb1 {[%emt 0:00:13]} Kh6 {[%emt 0:02:42]} 44. Rdb6 {[%emt 0:00:17]} Rd7 {[%emt 0:01:13]} 45. Be2 {[%emt 0:00:37]} ({Less strong is} 45. Rxb7 Rxd3 46. R7b2 Rdc3 $14) 45... Re7 {[%emt 0:01:52]} 46. Bf3 {[%emt 0:00:18]} ({Worse is} 46. Rxb7 Rxe2 47. Kh1 Rcc2 $11) 46... Rf5 {[%emt 0:00:29]} 47. g3 {[%emt 0:00:13]} Ra5 {[%emt 0:00:46]} 48. Rxb7 {[%emt 0:00:20]} Re3 {[%emt 0:00:58]} 49. R7b3 {[%emt 0:00:09]} Re7 {[%emt 0:00:36]} 50. Kf2 {[%emt 0:00:07]} g5 {[%emt 0:00:33]} 51. fxg5+ {[%emt 0:00:16]} Rxg5 {[%emt 0:37:43]} 52. Rb6 {[%emt 0:00:19]} Kg6 {[%emt 0:00:00]} 53. R1b5 {[%emt 0:00:10]} Rxb5 {[%emt 0:00:00]} 54. Rxb5 {[%emt 0:00:01]} Ra7 {[%emt 0:00:00]} 55. Be4+ {[%emt 0:00:11]} Kh6 {[%emt 0:00:00]} 56. Kf3 {[%emt 0:00:08]} Re7 {[%emt 0:00:00]} 57. Rb7 {[%emt 0:00:13] Weighted Error Value: White=0.09 (flawless) /Black=0.31  Mistake:       	---       	Black=5      Inaccurate:     	White=1     	Black=4      OK:         	White=22    	Black=12     Best:        	White=2     	Black=3} 1-0

[Event "FIDE World School-ch O-17 2025"]
[Site "Vrnjacka Banja"]
[Date "2025.03.20"]
[Round "1.3"]
[White "Jovanovic, Darko A"]
[Black "Milanovic, Marko"]
[Result "1/2-1/2"]
[Annotator "TA"]
[ECO "D02"]
[WhiteElo "1894"]
[BlackElo "2271"]
[PlyCount "119"]
[EventDate "2025.03.19"]
[EventType "swiss"]
[EventCountry "SRB"]
[SourceTitle "playchess.com"]
[Source "ChessBase"]
[SourceQuality "1"]
[TimeControl "5400+30"]

{[%evp 10,119,18,-9,34,0,0,0,0,-8,0,-3,0,-41,-35,-17,-5,-9,-8,-13,0,-8,-8,0,0,0,11,6,24,11,7,0,24,23,43,0,47,43,36,39,47,41,60,43,93,86,80,75,83,21,31,12,16,-50,20,14,34,31,26,26,32,10,31,0,0,-1,0,-14,0,-35,-35,-51,-43,-185,-175,-254,-185,-241,-185,-734,-531,-709,-661,-873,-810,-845,-839,-812,-795,-752,-690,-791,-594,-726,-381,-397,-334,-522,-20,-322,-21,-400,-134,-943,-134,-471,0,-916,-49,-49,0,-872]} 1. d4 {[%emt 0:00:11]} d5 {[%emt 0:00:09]} 2. Bf4 {[%emt 0:00:17]} Nf6 {[%emt 0:00:19]} 3. e3 {[%emt 0:00:23]} c5 {[%emt 0:00:15]} 4. c3 {[%emt 0:00:18]} Nc6 {[%emt 0:00:20]} 5. Nf3 {[%emt 0:00:41]} Qb6 {[%emt 0:01:24]} 6. Qc2 {[%emt 0:00:30]} Bg4 {[%emt 0:04:07] D02: 1 d4 d5 2 Nf3 sidelines, including 2...Nf6 3 g3 and 2...Nf6 3 Bf4.} 7. Nbd2 {[%emt 0:03:26]} e6 {[%emt 0:01:44]} 8. Be2 {[%emt 0:12:20]} Be7 {[%emt 0:04:28]} 9. O-O {[%emt 0:00:41]} O-O {[%emt 0:02:04]} 10. h3 {[%emt 0:05:11] Threatens to win with dxc5.} Bf5 {[%emt 0:01:44]} 11. Bd3 {[%emt 0:02:03]} Bxd3 {[%emt 0:07:14]} 12. Qxd3 {[%emt 0:00:08] A sharp opening} Rac8 {[%emt 0:01:43]} (12... Qxb2 {looks sharper.} 13. Rfb1 Qa3 14. Rxb7 Na5) 13. Rfe1 $146 {[%emt 0:02:43]} (13. a4 cxd4 14. exd4 a6 15. Ne5 Nxe5 16. Bxe5 Rfd8 17. Rfb1 {½-½ Bahadori,A (1835)-Abu Sufian,S (2247) Asia Club-ch Hybrid 2021 (2.4)}) 13... Rfe8 {[%emt 0:05:56]} 14. Rab1 {[%emt 0:05:30]} Qa5 {[%emt 0:17:59]} 15. g4 {[%emt 0:06:35]} Nd7 {[%emt 0:08:53][%cal Bf6d7,Bd7b6,Bb6d5][%mdl 32]} (15... Qxa2 16. dxc5 Ne4 (16... Bxc5 $2 17. Ra1 $18) 17. Nxe4 dxe4 18. Qxe4 $14) 16. a3 {[%emt 0:06:19]} c4 {[%emt 0:05:55]} 17. Qc2 {[%emt 0:01:23]} Nb6 {[%emt 0:04:23]} 18. e4 {[%emt 0:03:46]} Qa4 {[%emt 0:02:27]} 19. Qc1 {[%emt 0:02:06]} dxe4 {[%emt 0:01:28]} 20. Nxe4 {[%emt 0:04:09]} Nd5 {[%emt 0:02:01]} 21. Bg3 {[%emt 0:02:23]} Rf8 {[%emt 0:04:48]} 22. Nd6 {[%emt 0:04:58]} Rc7 {[%emt 0:05:32]} (22... Bxd6 $11 23. Bxd6 Nce7) 23. Qd2 {[%emt 0:09:31]} Rd7 {[%emt 0:01:26]} 24. Ne4 {[%emt 0:01:32]} b6 {[%emt 0:03:37]} 25. Qe2 {[%emt 0:01:14]} h6 {[%emt 0:05:12]} 26. Rbd1 {[%emt 0:05:36]} Qb5 {[%emt 0:01:40]} (26... Nf6 $14) 27. h4 $16 {[%emt 0:03:26]} Nf6 {[%emt 0:02:55]} 28. Nxf6+ {[%emt 0:01:42]} Bxf6 {[%emt 0:00:14]} 29. Bf4 {[%emt 0:03:29]} (29. a4 $16 Qxa4 30. g5 hxg5 31. hxg5) 29... Be7 {[%emt 0:01:16]} 30. g5 {[%emt 0:03:16]} Qf5 {[%emt 0:01:21]} 31. Qe3 {[%emt 0:01:03]} (31. Qe4 $11) 31... h5 {[%emt 0:01:27]} ({Better is} 31... hxg5 $1 $15 32. hxg5 Rd5) 32. Qe4 {[%emt 0:04:01]} Qg4+ {[%emt 0:01:03]} (32... Qxe4 {simplifies} 33. Rxe4 Bd6 34. Bg3 Ne7) 33. Bg3 {[%emt 0:00:21]} Qxe4 {[%emt 0:00:39]} 34. Rxe4 {[%emt 0:00:12]} g6 {[%emt 0:00:41]} 35. Kf1 {[%emt 0:00:59]} Rd5 {[%emt 0:00:22]} 36. Ne5 {[%emt 0:00:48]} Nxe5 {[%emt 0:00:48]} 37. Rxe5 {[%emt 0:00:07]} Rfd8 {[%emt 0:00:26]} 38. Rde1 {[%emt 0:00:16]} Kf8 {[%emt 0:00:36]} 39. Rxd5 {[%emt 0:00:58]} Rxd5 $11 {[%emt 0:00:05][%mdl 4096] Endgame KRB-KRB} 40. Re5 {[%emt 0:00:13]} Ke8 {[%emt 0:00:51]} 41. Rxd5 {[%emt 0:00:43]} ({White should play} 41. Re3 $15) 41... exd5 $15 {[%emt 0:00:01] KB-KB} 42. Be5 {[%emt 0:02:43]} (42. Kg2 {was necessary.}) 42... Kd7 {[%emt 0:00:19]} 43. Ke2 {[%emt 0:00:16]} (43. a4 $142) 43... Ke6 {[%emt 0:02:08]} 44. f4 $2 {[%emt 0:01:24]} (44. Bb8) 44... Bd8 {[%emt 0:00:00]} 45. Bg7 {[%emt 0:00:46]} Kf5 {[%emt 0:00:17]} 46. Kf3 {[%emt 0:00:12]} b5 {[%emt 0:00:27]} 47. Be5 {[%emt 0:00:35]} Be7 {[%emt 0:00:39]} 48. Bc7 {[%emt 0:00:29]} Bf8 {[%emt 0:00:13]} 49. Be5 {[%emt 0:00:23]} a5 {[%emt 0:00:25]} 50. Bc7 {[%emt 0:00:24]} a4 {[%emt 0:00:56][%cal Ob5b4]} 51. Bb8 {[%emt 0:00:15]} Be7 {[%emt 0:00:29][%cal Ob5b4] Strongly threatening ...b4!.} 52. Bc7 {[%emt 0:00:08]} Ke6 {[%emt 0:00:06]} 53. Bb8 {[%emt 0:00:12]} (53. Ke2 $142) 53... Kd7 $2 {[%emt 0:00:50]} (53... b4 $19 54. f5+ Kxf5 55. axb4 Bxb4) 54. f5 $2 {[%emt 0:01:27][%mdl 8192]} gxf5 $2 {[%emt 0:00:22]} (54... b4 $1 $19 {[%cal Rb4a3]} 55. cxb4 (55. axb4 $2 Bxb4 56. Bf4 a3 $19) 55... Bxb4) 55. Kf4 $2 {[%emt 0:00:05][%mdl 8192]} (55. Bf4 $1 $11 {and White stays safe.}) 55... Ke6 $2 {[%emt 0:00:15]} (55... b4 $1 $19 {[%cal Rb4a3]} 56. cxb4 Bxb4 (56... Ke6 57. Ke3 $11) 57. Kxf5 (57. axb4 $2 c3 $19) 57... c3 (57... Be1 58. Kf6 $17) 58. bxc3 Bxa3) 56. Be5 $2 {[%emt 0:00:45][%mdl 8192] [#]} (56. Ke3 $17) 56... Bf8 $2 {[%emt 0:00:15]} (56... b4 $1 $19 {[%cal Rb4a3] and Black stays clearly on top.} 57. cxb4 Bxb4 58. axb4 c3 59. bxc3 a3) 57. Kf3 $2 {[%emt 0:00:21][%mdl 8192]} (57. Ke3 $17 {was the crucial defense.}) 57... Be7 {[%emt 0:00:46]} (57... b4 $142 58. cxb4 (58. axb4 $2 Bxb4 59. Bf4 a3 $19) 58... Bxb4) 58. Kf4 $19 {[%emt 0:00:06] [#]} Bd8 $2 {[%emt 0:00:39]} (58... b4 $1 $19 {[%cal Rb4c3]} 59. cxb4 Bxb4 60. axb4 c3 61. bxc3 a3) 59. Kf3 $15 {[%emt 0:00:18]} Be7 $2 {[%emt 0:00:47][%mdl 8192]} (59... f4 $15) 60. Kf4 {[%emt 0:00:06][%mdl 32768] Weighted Error Value: White=0.76/Black=0.74 An unexpected result.  Loses game:     	White=4     	---        Missed win:     	---       	Black=5      Mistake:       	White=7     	Black=3      Inaccurate:     	White=7     	---        OK:         	White=9     	Black=5      Best:        	White=1     	Black=3} 1/2-1/2

[Event "FIDE World School-ch O-17 2025"]
[Site "Vrnjacka Banja"]
[Date "2025.03.20"]
[Round "1.4"]
[White "Gusev, Mikhail"]
[Black "Guntaka, Aayansh"]
[Result "1/2-1/2"]
[Annotator "NA RC"]
[ECO "B33"]
[WhiteElo "2250"]
[BlackElo "1866"]
[PlyCount "109"]
[EventDate "2025.03.19"]
[EventType "swiss"]
[EventCountry "SRB"]
[SourceTitle "playchess.com"]
[Source "ChessBase"]
[SourceQuality "1"]
[TimeControl "5400+30"]

1. e4 {[%emt 0:00:54]} c5 {[%emt 0:00:08]} 2. Nf3 {[%emt 0:00:04]} e6 {[%emt 0:00:09]} 3. d4 {[%emt 0:00:32]} cxd4 {[%emt 0:00:07]} 4. Nxd4 {[%emt 0:00:05]} Nf6 {[%emt 0:00:07]} 5. Nc3 {[%emt 0:00:07]} Nc6 {[%emt 0:00:06]} 6. Ndb5 {[%emt 0:03:12]} d6 {[%emt 0:00:13]} 7. Bf4 {[%emt 0:02:47]} e5 {[%emt 0:00:18]} 8. Bg5 {[%emt 0:00:26]} a6 {[%emt 0:00:13]} 9. Na3 {[%emt 0:00:01]} b5 {[%emt 0:00:10]} 10. Nd5 {[%emt 0:00:03]} Be7 {[%emt 0:00:07]} 11. Bxf6 {[%emt 0:01:09]} Bxf6 {[%emt 0:00:19]} 12. c4 {[%emt 0:00:07]} b4 {[%emt 0:00:20]} 13. Nc2 {[%emt 0:00:05]} a5 {[%emt 0:00:06]} 14. g3 {[%emt 0:01:06]} O-O {[%emt 0:00:44]} 15. h4 {[%emt 0:00:40]} Be6 {[%emt 0:01:24]} 16. Be2 {[%emt 0:03:14]} Bxd5 {[%emt 0:05:08]} 17. Qxd5 {[%emt 0:01:41]} Nd4 {[%emt 0:00:59]} 18. Nxd4 {[%emt 0:04:02]} exd4 {[%emt 0:00:15]} 19. Bg4 {[%emt 0:03:29]} Re8 {[%emt 0:04:01]} 20. O-O {[%emt 0:08:31]} g6 {[%emt 0:01:33]} 21. Rae1 {[%emt 0:05:13]} h5 {[%emt 0:02:33]} 22. Bh3 {[%emt 0:00:40]} Bg7 {[%emt 0:03:26]} 23. f4 {[%emt 0:01:39]} Qe7 {[%emt 0:04:58]} 24. Kg2 {[%emt 0:10:47]} a4 {[%emt 0:03:50]} 25. f5 {[%emt 0:03:40]} Qe5 {[%emt 0:04:15]} 26. fxg6 {[%emt 0:02:27]} Qxd5 {[%emt 0:00:07]} 27. exd5 {[%emt 0:00:10]} fxg6 {[%emt 0:05:34]} 28. Be6+ {[%emt 0:00:14]} Kh8 {[%emt 0:00:26]} 29. Bf7 {[%emt 0:02:03]} Rxe1 {[%emt 0:01:18]} 30. Rxe1 {[%emt 0:00:02]} d3 {[%emt 0:00:40]} 31. Bxg6 {[%emt 0:02:16]} Bxb2 {[%emt 0:02:41]} 32. Bxd3 {[%emt 0:01:38]} b3 {[%emt 0:00:34]} 33. Bb1 {[%emt 0:00:41]} bxa2 {[%emt 0:01:11]} 34. Bxa2 {[%emt 0:00:02]} Bd4 {[%emt 0:00:29]} 35. Re4 {[%emt 0:02:20]} Bc5 {[%emt 0:00:31]} 36. Re2 {[%emt 0:02:49]} a3 {[%emt 0:01:02]} 37. Kf3 {[%emt 0:01:45]} Rf8+ {[%emt 0:00:44]} 38. Kg2 {[%emt 0:01:06]} Rb8 {[%emt 0:04:15]} 39. Kh3 {[%emt 0:00:22]} Rf8 {[%emt 0:00:17]} 40. Bb1 {[%emt 0:02:29]} Rf1 {[%emt 0:00:52]} 41. Ba2 {[%emt 0:03:22]} Kg7 {[%emt 0:00:17]} 42. Kg2 {[%emt 0:00:38]} Rf7 {[%emt 0:01:34]} 43. Bb1 {[%emt 0:02:37]} Rb7 {[%emt 0:00:09]} 44. Ba2 {[%emt 0:01:21]} Kh7 {[%emt 0:00:19]} 45. Kf3 {[%emt 0:00:24]} Rf7+ {[%emt 0:00:11]} 46. Ke4 {[%emt 0:00:09]} Re7+ {[%emt 0:00:13]} 47. Kd3 {[%emt 0:00:09]} Rxe2 {[%emt 0:00:30]} 48. Kxe2 {[%emt 0:00:02]} Kg6 {[%emt 0:00:09]} 49. Kf3 {[%emt 0:02:04]} Kf5 {[%emt 0:00:09]} 50. g4+ {[%emt 0:00:51]} hxg4+ {[%emt 0:04:15]} 51. Kg3 {[%emt 0:00:09]} Be3 {[%emt 0:01:05]} 52. Bb1+ {[%emt 0:01:19]} Ke5 {[%emt 0:00:07]} 53. Kxg4 {[%emt 0:00:08]} Kd4 {[%emt 0:00:06]} 54. Kf3 {[%emt 0:01:05]} Bh6 {[%emt 0:01:08]} 55. Ba2 {[%emt 0:00:14]} 1/2-1/2